Cogmind - Beta 16 @@@ ROGUE MODE // 2025.12.29 @ 01:26:03 Player: Artackni Result: Destroyed by H-55 Commando with Gauss Rifle Performance ------------- Evolutions (3) 1500 Regions Visited (6) 1200 Robots Destroyed (138) 690 Value Destroyed (4984) 4984 Prototype IDs (7) 140 Alien Tech Used (0) 0 Bonus (928) 928 TOTAL SCORE: 9442 Bonus ------- High Alert Combat Kills 228 Entered Garrisons 200 Used RIF Installer 500 Cogmind --------- Core Integrity 0/700 Matter 216/300 Energy 290/290 System Corruption 25% Temperature Warning (317) Movement Rolling (95) Ox1 Location -7/Factory Parts ------- > --- POWER (1) -------- Improved Deuterium Engine > --- PROPULSION (5) --- Light Treads Wheel Wheel Wheel > --- UTILITY (5) ------ High-capacity Storage Unit Core Analyzer Weapon Cycler Relay Coupler [NC] (25) > --- WEAPON (2) ------- Gatling Laser Flak Gun > --- INVENTORY (20) --- Light Nuclear Core Compact Wheel Compact Wheel Compact Wheel Improved Cooling System Large Matter Pod (150) Hacking Suite Hacking Suite Relay Coupler [Swarmer] (29) Relay Coupler [Grunt] (33) Tractor Beam Advanced EMP Blaster Remote Datajack Chainsword Peak State ------------ > --- POWER ------------ Heavy Deuterium Engine > --- PROPULSION ------- Light Treads Armored Huge Wheel Armored Huge Wheel > --- UTILITY ---------- High-capacity Storage Unit Core Analyzer Weapon Cycler Weapon Cycler Layered Light Armor Plating > --- WEAPON ----------- Enhanced Autogun Enhanced Autogun > --- INVENTORY -------- Micro Nuclear Core Armored Huge Wheel Improved Cooling System Large Matter Pod Core Analyzer Weapon Cycler Transmission Jammer Layered Light Armor Plating Hacking Suite System Shield System Shield Enhanced Autogun Enhanced Autogun Advanced EMP Blaster Missile Launcher Datajack Heavy Flail [Rating: 53] Favorites ----------- Power Light Nuclear Core Engine Light Ion Engine Power Core Light Nuclear Core Propulsion Light Treads Treads Light Treads Leg Aluminum Leg Wheel Armored Huge Wheel Utility Weapon Cycler Device Weapon Cycler Storage Large Storage Unit Processor Core Analyzer Hackware Relay Coupler [NC] Protection Layered Light Armor Plating Weapon Enhanced Autogun Energy Gun EM Pulse Gun Energy Cannon Advanced Beam Cannon Ballistic Gun Enhanced Autogun Ballistic Cannon Gauss Cannon Launcher Advanced EMP Blaster Special Weapon Remote Datajack Slashing Weapon Chainsword Special Melee Weapon Datajack Build | -11 -10 -10 -8 -7 -7 -7 ------- Run | Yrd Mat Sub Mat Fac Gar Fac Slots Evolved 6 | . . . 4 2 . . Power . | . . . . . . . Propulsion 3 | . . . 2 1 . . Utility 3 | . . . 2 1 . . Weapon . | . . . . . . . Parts Attached 116 | 8 13 3 28 29 5 30 Power 12 | 1 2 . 2 3 1 3 Engine 8 | 1 2 . . 2 1 2 Core 4 | . . . 2 1 . 1 Reactor . | . . . . . . . Propulsion 43 | 2 3 . 10 12 2 14 Treads 24 | . 2 . 6 9 2 5 Leg 8 | 2 1 . 4 . . 1 Wheel 11 | . . . . 3 . 8 Hover . | . . . . . . . Flight . | . . . . . . . Utility 31 | 2 2 1 10 8 1 7 Device 11 | 1 1 . 4 3 1 1 Storage 5 | 1 1 . . 2 . 1 Processor 7 | . . . 4 1 . 2 Hackware 2 | . . . . . . 2 Protection 6 | . . 1 2 2 . 1 Artifact . | . . . . . . . Weapon 30 | 3 6 2 6 6 1 6 Energy Gun 5 | 2 1 . 1 . . 1 Energy Cannon 3 | . 3 . . . . . Ballistic Gun 13 | 1 2 1 5 1 1 2 Ballistic Cannon 2 | . . . . 2 . . Launcher 2 | . . . . 1 . 1 Special Weapon 3 | . . 1 . 1 . 1 Impact Weapon . | . . . . . . . Slashing Weapon 1 | . . . . . . 1 Piercing Weapon . | . . . . . . . Special Melee Weapon 1 | . . . . 1 . . Unidentified Prototypes 4 | . 1 . 1 2 . . Parts Lost 31 | . 1 . 3 7 2 18 Power 2 | . . . . . 1 1 Propulsion 13 | . . . 1 3 . 9 Utility 11 | . 1 . 2 2 1 5 Weapon 5 | . . . . 2 . 3 Highest Loss Streak 12 | . 1 . 3 4 1 12 To Critical Strikes 1 | . . . . . 1 . Average Backups 15 | 4 8 11 14 17 19 17 Power 1 | . 1 2 1 1 . 1 Propulsion 1 | 1 2 2 . 1 5 3 Utility 7 | . 1 3 7 8 7 9 Weapon 4 | . 2 3 4 5 4 2 Tool/Special . | . . . . . . . Unused Backups 35 | . 3 . 9 9 6 8 Power 4 | . . . 1 2 . 1 Propulsion 6 | . 3 . . . 2 1 Utility 18 | . . . 5 6 2 5 Weapon 7 | . . . 3 1 2 1 Tool/Special . | . . . . . . . Average Slot Usage (%) 94 | . 97 100 99 89 91 92 Engine 5 | . 13 14 2 2 7 6 Core 3 | . . . 6 4 . . Treads 17 | . 9 28 23 10 23 18 Leg 7 | . 18 . 12 7 . . Wheel 5 | . . . . 8 7 13 Device 12 | . 12 12 11 14 14 9 Storage 8 | . 14 14 9 7 7 7 Processor 6 | . . . 10 7 7 7 Protection 5 | . . 1 4 7 7 5 Energy Gun 1 | . 16 . 2 . . . Energy Cannon 2 | . 6 13 2 . . . Ballistic Gun 11 | . 4 14 13 14 5 3 Ballistic Cannon 1 | . . . . . 8 4 Peak Build Rating 53 | 7 14 19 33 53 46 45 Average Rating 33 | 5 9 13 27 45 44 37 On Entrance 23 | . 7 13 19 33 46 45 Avg Prop Armor Cover (%) 15 | . . . 8 15 17 14 Naked Turns . | . . . . . . . Heaviest Build 71 | 15 31 35 41 71 70 68 Greatest Support 92 | 20 46 46 92 60 60 60 Greatest Overweight (x) 3 | . 1 . 1 2 2 3 Average Overweight (x) . | . . . . 1 1 1 Largest Inventory Capacity 20 | 8 15 15 15 20 20 20 Average Capacity 16 | 7 9 15 15 18 20 20 Most Carried 20 | 6 11 15 15 20 20 20 Average Carried 15 | 4 8 11 14 18 19 18 Final Capacity 20 | 8 15 15 15 20 20 20 Final Carried 20 | 6 11 15 15 20 20 14 Class Distribution -------------------- 63% | Mutant 27% | Scavenger-Mutant 9% | Bothacker-Mutant Dominant Class ---------------- Mutant | -10/Materials Mutant | -10/Subcaves Mutant | -8/Materials Mutant | -7/Factory Scavenger-Mutant | -7/Garrison Bothacker-Mutant | -7/Factory Resources | -11 -10 -10 -8 -7 -7 -7 ----------- Run | Yrd Mat Sub Mat Fac Gar Fac Matter Collected 4991 | 260 151 197 1013 2017 268 1085 Remotely 627 | . . . . 614 . 13 Salvage Created 5378 | 196 459 162 1456 1745 258 1102 Parts 319 | 18 31 6 75 105 23 61 Haulers Intercepted 10 | . 1 . 6 3 . . Recyclers Shooed 3 | . . . . . . 3 Parts Field Recycled . | . . . . . . . Retrieved Matter . | . . . . . . . Parts Self-Destructed . | . . . . . . . Prevented . | . . . . . . . Parts Restored . | . . . . . . . Kills | -11 -10 -10 -8 -7 -7 -7 ------- Run | Yrd Mat Sub Mat Fac Gar Fac Combat Hostiles Destroyed 103 | . 14 4 25 28 10 22 Melee 5 | . . . . . . 5 Guns 65 | . 10 1 21 24 3 6 Cannons 28 | . 2 2 3 4 7 10 AOE 3 | . 2 . . . . 1 Classes Destroyed 17 | 2 4 1 4 3 2 1 Worker 7 | . . . 1 1 . 5 Builder 2 | . . . . 1 . 1 Tunneler 6 | 5 1 . . . . . Hauler 10 | . 1 . 6 3 . . Recycler 5 | 1 . . . 1 . 3 Operator 2 | . . . 1 1 . . Watcher 3 | . 1 . . 2 . . Swarmer 19 | . 9 . 4 . 3 3 Cutter 3 | . . . . . 3 . Grunt 37 | . 5 . 11 11 . 10 Brawler 5 | . . . . . 2 3 Duelist 2 | . . . . . . 2 Protector 1 | . . . . 1 . . Sentry 20 | . . . 8 8 1 3 Hunter 5 | . . . 2 2 1 . Programmer 7 | . . . . 6 . 1 Subdweller 4 | . . 4 . . . . Best Kill Streak 9 | 2 4 2 5 6 4 9 Combat Bots Only 7 | . 4 2 4 6 4 7 Max Kills in Single Turn 3 | 1 2 1 2 1 1 3 Gunslinging . | . . . . . . . Exploded 1 | . 1 . . . . 1 Melee 1 | . . . . . . 1 Uniques/NPCs Destroyed . | . . . . . . . Combat | -11 -10 -10 -8 -7 -7 -7 -------- Run | Yrd Mat Sub Mat Fac Gar Fac Hostile Shots Fired 880 | . 64 21 147 350 38 260 Missed 251 | . 15 6 42 108 9 71 Hits 629 | . 49 15 105 242 29 189 Melee 25 | . . . . . 3 22 Projectile 604 | . 49 15 105 242 26 167 AOE 2 | . . . . . 2 . Critical Strikes 22 | . 2 2 5 5 2 6 Damage Taken 8272 | . 437 320 1605 2423 460 3027 Core 1114 | . 119 128 155 228 34 450 Absorbed by Shields . | . . . . . . . Ignored by Resistances 58 | . . . . 58 . . Regen/Repaired (Parts) 259 | . . . 121 138 . . Core Remaining (%) 57 | 100 . 1 71 . . . Volleys Fired 480 | 23 38 23 118 170 27 81 Largest 2 | 2 2 2 2 2 2 2 Hottest 136 | 80 136 100 101 80 80 108 Shots Fired 876 | 43 74 34 227 332 49 117 Gun 700 | 43 58 18 195 321 20 45 Cannon 163 | . 16 14 32 10 29 62 Launcher 2 | . . . . . . 2 Special 11 | . . 2 . 1 . 8 Kinetic 696 | 3 10 18 182 331 49 103 Thermal 81 | . 16 16 45 . . 4 Explosive . | . . . . . . . Electromagnetic 90 | 40 48 . . . . 2 Robot Hit Streak 17 | 4 4 14 16 17 9 13 Robot Miss Streak 10 | 6 8 3 8 9 10 6 Penetration Max 1 | . . . . . . 1 Secondary Targets 5 | . . . 1 3 . 1 Max Gunslinging Chain 1 | . . . 1 1 . 1 Shots Hit Robots 583 | 15 33 26 149 219 34 107 Core Hits 292 | 7 18 6 55 83 34 89 Critical Kills 2 | . . 1 . 1 . . Critical Parts Destroyed . | . . . . . . . Critical Strikes 15 | . . 1 1 1 1 11 Burn 1 | . . . 1 . . . Meltdown 1 | . . 1 . . . . Destroy 1 | . . . . 1 . . Blast 10 | . . . . . 1 9 Sever 2 | . . . . . . 2 Melee Attacks 31 | . . . . 5 . 26 Impact . | . . . . . . . Slashing 26 | . . . . . . 26 Piercing . | . . . . . . . Sneak Attacks 11 | . . . . 5 . 6 Combat Hostiles . | . . . . . . . Follow-up Attacks . | . . . . . . . Damage Inflicted 11758 | 194 642 448 2747 3822 700 3205 Guns 7866 | 194 346 245 2320 3602 285 874 Cannons 2648 | . 184 203 427 218 415 1201 Explosions 321 | . 112 . . . . 209 Melee 921 | . . . . . . 921 Ramming 2 | . . . . 2 . . Kinetic 8930 | 34 33 245 2133 3820 700 1965 Thermal 1269 | . 296 203 614 . . 156 Explosive . | . . . . . . . Electromagnetic 636 | 160 313 . . . . 163 Impact . | . . . . . . . Slashing 921 | . . . . . . 921 Piercing . | . . . . . . . Highest Corruption 25 | . . . . 8 12 25 Average Corruption 9 | . . . . 6 9 15 Corruption Purged . | . . . . . . . Corruption Blocked . | . . . . . . . Effects 123 | . . . . 64 22 37 Message Errors 32 | . . . . 17 9 6 Matter Fused 29 | . . . . 14 5 10 Heat Flow Errors 20 | . . . . 7 5 8 Energy Discharges 10 | . . . . 7 . 3 Parts Rejected 1 | . . . . . . 1 Parts Fused 1 | . . . . 1 . . Data Loss (minor) 10 | . . . . 7 1 2 Data Loss (major) 6 | . . . . 5 . 1 Misfires 5 | . . . . 3 1 1 Alerts 1 | . . . . . . 1 Weapon Failures 8 | . . . . 3 1 4 Overload Shots . | . . . . . . . Overflow Damage 159 | . 15 . 11 . 11 122 Projectiles 37 | . 15 . 11 . 11 . Explosions 18 | . . . . . . 18 Melee 104 | . . . . . . 104 Knockbacks 8 | . . . . 1 1 6 Impact . | . . . . . . . Kinetic 8 | . . . . 1 1 6 Secondary . | . . . . . . . Self-Inflicted Damage 93 | . 31 . . . . 62 Shots 3 | . 1 . . . . 2 Rammed 1 | . . . . 1 . . Targets Rammed 1 | . . . . 1 . . Kicked . | . . . . . . . Crushed . | . . . . . . . Highest Temperature 487 | 90 298 . 261 487 232 341 Average Temperature 88 | 29 74 . 57 115 79 117 Received Heat Transfer 2142 | . 42 51 585 741 6 717 Effects 19 | . 2 . 2 10 . 5 Shutdowns 1 | . . . . 1 . . Energy Bleed 3 | . 1 . . . . 2 Interference 9 | . 1 . 2 3 . 3 Matter Decay 1 | . . . . 1 . . Short Circuit 2 | . . . . 2 . . Damage (minor) 1 | . . . . 1 . . Damage (major) 2 | . . . . 2 . . Siege Activations . | . . . . . . . Martial Activations . | . . . . . . . Shielding Activations . | . . . . . . . Robots Disrupted . | . . . . . . . Combat Hostiles . | . . . . . . . Robots Corrupted . | . . . . . . . Combat Hostiles . | . . . . . . . Parts Fried . | . . . . . . . Impact Corruptions . | . . . . . . . Robots Melted 2 | . . 1 1 . . . Combat Hostiles 2 | . . 1 1 . . . Parts Melted 2 | . . 2 . . . . Heat Transferred 2461 | . 483 370 1258 . . 350 Parts Sabotaged . | . . . . . . . Parts Stolen . | . . . . . . . Parts Stripped . | . . . . . . . Power Chain Reactions 3 | . 2 . . . . 1 Alert | -11 -10 -10 -8 -7 -7 -7 ------- Run | Yrd Mat Sub Mat Fac Gar Fac Maximum Alert Level 2 | . . . 1 2 2 2 Low Security (%) 53 | 100 100 . 60 63 . . Level 1 35 | . . . 39 34 37 63 Level 2 10 | . . . . 1 62 36 Level 3 . | . . . . . . . Level 4 . | . . . . . . . Level 5 . | . . . . . . . High Security . | . . . . . . . Max Security . | . . . . . . . Peak Influence 689 | 5 199 . 385 475 689 509 Initial 361 | . . . . 161 329 361 Average 198 | . 99 . 148 156 473 378 Influence Increases 3226 | 30 410 . 821 953 380 632 Destroy 0b10 Robot/C 1960 | . 280 . 500 540 200 440 Destroy 0b10 Robot/NC 180 | 30 15 . 40 50 . 45 Destroy Leader 526 | . 64 . 162 190 20 90 Successful Hack 105 | . 6 . 20 79 . . Disable Machine 135 | . 15 . 60 30 . 30 Anti-Garrison Action 100 | . . . . . 100 . Destroy Structure 55 | . 15 . 9 4 15 12 Lose Combat Pursuer 165 | . 15 . 30 60 45 15 Influence Decreases 2775 | 30 250 160 467 836 162 870 Entered New Map 740 | . . 77 . 193 142 328 Time Decay 1725 | 30 240 83 437 573 . 362 Lost Part 310 | . 10 . 30 70 20 180 Squads Dispatched 19 | . 2 . 1 11 . 5 Investigation 2 | . . . . 2 . . Extermination 6 | . . . . 5 . 1 Reinforcement 5 | . 2 . 1 1 . 1 Assault . | . . . . . . . Garrison 6 | . . . . 3 . 3 Intercept . | . . . . . . . Searches Triggered . | . . . . . . . Construction Impeded 1 | . . . . 1 . . Haulers Reinforced 1 | . . . . . . 1 Active Scanning Responses . | . . . . . . . Cargo Convoy Interrupts 2 | . . . . 1 . 1 Stealth | -11 -10 -10 -8 -7 -7 -7 --------- Run | Yrd Mat Sub Mat Fac Gar Fac Distress Signals 13 | . 2 . 5 3 . 3 Communications Jammed . | . . . . . . . Distress Signals . | . . . . . . . Times Spotted 163 | . 17 6 43 47 11 39 Peak Tracking Total 14 | . 5 2 6 5 6 14 Tactical Retreats 8 | . 1 . 2 3 1 1 Traps | -11 -10 -10 -8 -7 -7 -7 ------- Run | Yrd Mat Sub Mat Fac Gar Fac Traps Triggered 13 | . 3 . . . 9 1 Indirectly . | . . . . . . . Trap Hack Attempts . | . . . . . . . Triggered . | . . . . . . . Disarmed . | . . . . . . . Reprogrammed . | . . . . . . . Reused . | . . . . . . . Traps Extracted . | . . . . . . . Installed . | . . . . . . . Triggered . | . . . . . . . Machines | -11 -10 -10 -8 -7 -7 -7 ---------- Run | Yrd Mat Sub Mat Fac Gar Fac Machines Disabled 11 | . 1 . 4 2 2 2 Max in Single Turn 1 | . 1 . 1 1 1 1 Garrison Relay 2 | . . . . . 2 . Machines Repaired . | . . . . . . . Machines Dismantled . | . . . . . . . Machines Sabotaged . | . . . . . . . Overloaded Fab Kills . | . . . . . . . Hacking | -11 -10 -10 -8 -7 -7 -7 --------- Run | Yrd Mat Sub Mat Fac Gar Fac Machines Accessed 23 | . 2 . 7 13 . 1 Terminals 15 | . 2 . 6 7 . . Fabricators 2 | . . . . 2 . . Repair Stations 4 | . . . 1 2 . 1 Recycling Units . | . . . . . . . Scanalyzers 1 | . . . . 1 . . Garrison Access 1 | . . . . 1 . . Total Hacks 49 | . 3 . 14 31 . 1 Successful 26 | . 2 . 8 16 . . Failed 22 | . 1 . 6 14 . 1 Catastrophic 6 | . . . 1 5 . . Database Lockouts 1 | . . . . 1 . . Manual 11 | . 2 . 3 6 . . Terminals 31 | . 3 . 11 17 . . Fabricators 4 | . . . . 4 . . Repair Stations 8 | . . . 3 4 . 1 Recycling Units . | . . . . . . . Scanalyzers 4 | . . . . 4 . . Garrison Access 2 | . . . . 2 . . Terminal Hacks 12 | . 1 . 5 6 . . Record 2 | . . . . 2 . . Robot Analysis 1 | . 1 . . . . . Prototype ID Bank 1 | . . . 1 . . . Branch Access Points 1 | . . . 1 . . . Emergency Access Points 2 | . . . 1 1 . . Alert Level 1 | . . . 1 . . . Locate Traps 1 | . . . . 1 . . Hauler Manifests 1 | . . . . 1 . . Registered Components 1 | . . . . 1 . . Zone Layout 1 | . . . 1 . . . Fabricator Hacks 3 | . . . . 3 . . Load Schematic 2 | . . . . 2 . . Build 1 | . . . . 1 . . Repair Station Hacks 4 | . . . 2 2 . . Scan Component 2 | . . . 1 1 . . Repair 2 | . . . 1 1 . . Recycling Unit Hacks . | . . . . . . . Scanalyzer 3 | . . . . 3 . . Insert Component 1 | . . . . 1 . . Analyze 1 | . . . . 1 . . Retrieve Study 1 | . . . . 1 . . Garrison Access Hacks 1 | . . . . 1 . . Unlock Access 1 | . . . . 1 . . Unauthorized Hacks 3 | . 1 . 1 1 . . Terminals 3 | . 1 . 1 1 . . Operators 3 | . 1 . 1 1 . . Fabricators . | . . . . . . . Repair Stations . | . . . . . . . Recycling Units . | . . . . . . . Scanalyzers . | . . . . . . . Garrison Access . | . . . . . . . Data Cores Recovered . | . . . . . . . Used . | . . . . . . . Hacking Detections 15 | . 1 . 5 8 . 1 Full Trace Events 2 | . . . . 2 . . Feedback Events . | . . . . . . . Feedback Blocked . | . . . . . . . Robot Schematics Acquired . | . . . . . . . Robots Built . | . . . . . . . Authchips . | . . . . . . . Time . | . . . . . . . Total Robot Build Rating . | . . . . . . . Part Schematics Acquired 1 | . . . . 1 . . Parts Built 2 | . . . . 2 . . Authchips . | . . . . . . . Time 84 | . . . . 84 . . Total Part Build Rating 8 | . . . . 8 . . Part Studies Acquired 1 | . . . . 1 . . Parts Repaired 2 | . . . 1 1 . . Time 74 | . . . 44 30 . . Parts Recycled . | . . . . . . . Recycled Matter . | . . . . . . . Retrieved Matter . | . . . . . . . Retrieved Components . | . . . . . . . Parts Scanalyzed 1 | . . . . 1 . . Part Schematics Acquired 1 | . . . . 1 . . Parts Damaged . | . . . . . . . Bothacking | -11 -10 -10 -8 -7 -7 -7 ------------ Run | Yrd Mat Sub Mat Fac Gar Fac Used RIF Installer 1 | . . . . . 1 . Robots Hacked 6 | . . . . 2 . 4 Non-combat 6 | . . . . 2 . 4 Combat . | . . . . . . . Robot Hacks Applied 6 | . . . . 2 . 4 no_distress 2 | . . . . 2 . . map_walls 2 | . . . . . . 2 drop_inventory 2 | . . . . . . 2 Relay Couplers Released 10 | . . . . . 10 . Machine Destruction 10 | . . . . . 10 . Attached 2 | . . . . . . 2 Fabnet Peak Effective % . | . . . . . . . Robots Rewired 1 | . . . . 1 . . Allies Hacked . | . . . . . . . Hacks Repelled . | . . . . . . . Allies | -11 -10 -10 -8 -7 -7 -7 -------- Run | Yrd Mat Sub Mat Fac Gar Fac Total Allies 1 | . . . . 1 . . Largest Group 1 | . . . . 1 . . Highest-Rated Group 16 | . . . . 16 . . Highest-Rated Ally 16 | . . . . 16 . . Total Orders . | . . . . . . . Ally Attacks 2 | . . . . 2 . . Total Damage 14 | . . . . 14 . . Kills . | . . . . . . . Allies Corrupted . | . . . . . . . Allies Melted . | . . . . . . . Intel | -11 -10 -10 -8 -7 -7 -7 ------- Run | Yrd Mat Sub Mat Fac Gar Fac Active Infowar (turns) 2708 | 2 518 559 1629 . . . Sensors 601 | . 42 559 . . . . Terrain 988 | . . . 988 . . . Seismic 1587 | 2 476 . 1109 . . . T.N.C. 485 | . . . 485 . . . Robot Analysis Total 1 | . 1 . . . . . Derelict Logs Recovered . | . . . . . . . Drone Launches . | . . . . . . . Drone Recoveries . | . . . . . . . Exploration | -11 -10 -10 -8 -7 -7 -7 ------------- Run | Yrd Mat Sub Mat Fac Gar Fac Turns Passed 7725 | 225 571 611 2145 2720 619 834 Spaces Moved 4300 | 121 285 338 1062 1736 378 380 Core 5 | 5 . . . . . . Treads 1053 | . 91 338 568 6 1 49 Legs 1102 | 116 194 . 494 298 . . Wheels 2140 | . . . . 1432 377 331 Hover . | . . . . . . . Flight . | . . . . . . . Fastest Speed 50 | 50 120 160 120 115 120 95 Average Speed 130 | 117 133 160 142 120 120 132 Slowest Speed 320 | 120 190 160 240 320 240 240 Overloaded Moves . | . . . . . . . Propulsion Burnouts . | . . . . . . . Robots Hopped . | . . . . . . . Potential Cave-ins . | . . . . . . . Cave-ins Triggered . | . . . . . . . Exploration Rate (%) 36 | 5 59 24 74 41 47 7 Regions Visited 6 Branch Regions 1 Pre-discovered Areas . | . . . . . . . Known Exits Taken 1 | . . . . 1 . . Unknown Exits Taken 4 | 1 1 1 1 . . . Scrap Searched 3 | . . 3 . . . . Spaces Dug . | . . . . . . . Terrain Destroyed 27 | . 12 . 4 . 1 10 Melee . | . . . . . . . Projectile 12 | . . . 4 . 1 7 AOE 15 | . 12 . . . . 3 Terrain Rammed . | . . . . . . . Walls Destroyed . | . . . . . . . Machines Disabled . | . . . . . . . Actions | -11 -10 -10 -8 -7 -7 -7 --------- Run | Yrd Mat Sub Mat Fac Gar Fac Total 5782 | 157 403 370 1504 2257 522 569 Wait 576 | . 43 2 237 254 22 18 Move 4295 | 120 284 337 1061 1736 377 380 Hop . | . . . . . . . Pick Up 84 | 6 9 4 23 25 10 7 Fast Attach 33 | 7 7 . 6 4 . 9 Attach 30 | . . . 4 8 3 15 Detach 1 | . . . . 1 . . Swap 99 | 1 14 4 26 29 2 23 Drop 80 | . 8 . 29 24 9 10 Fire 480 | 23 38 23 118 170 27 81 Melee 31 | . . . . 5 . 26 Ram . | . . . . . . . Kick . | . . . . . . . Crush 1 | . . . . 1 . . Escape Stasis 72 | . . . . . 72 . Rewire . | . . . . . . . Trap . | . . . . . . . Miscellaneous . | . . . . . . . Route ------- -11/Scrapyard -10/Materials (discovered 3 exits: [*Mat] / [*Min] / [*Sub]) -10/Subcaves -8/Materials -7/Factory (discovered 2 exits: [*Fac] / Gar) -7/Garrison (discovered 2 exits: *Fac x2) -7/Factory (discovered 1 exit: [*Fac]) History --------- Turn | Location | Event 8 | -11/Scrapyard | Discovered new exit (range 14) 226 | -11/Scrapyard | Entered Materials 306 | -10/Materials | Build established: Mutant 375 | -10/Materials | Discovered new exit (range 7) 661 | -10/Materials | Discovered new exit (range 16) 782 | -10/Materials | Discovered new exit (range 6) 797 | -10/Materials | Entered Subcaves 798 | -10/Subcaves | Approached by a straggling Scientist 1166 | -10/Subcaves | Core integrity fell below 50% 1329 | -10/Subcaves | Core integrity fell below 20% 1390 | -10/Subcaves | Discovered new exit (range 12) 1408 | -10/Subcaves | Entered Materials 1408 | -8/Materials | Evolved 4 slots: Propulsion x2, Utility x2 2132 | -8/Materials | Repaired Hvy. Battle Rifle 2605 | -8/Materials | Lost 3 parts (1n2u) 2943 | -8/Materials | Build established: Scavenger-Mutant 3021 | -8/Materials | Discovered new exit (range 4) 3553 | -8/Materials | Entered Factory 3553 | -7/Factory | Evolved 2 slots: Propulsion x1, Utility x1 4127 | -7/Factory | Found Prototype Launcher 4127 | -7/Factory | Identified Rocket Array 4388 | -7/Factory | Central database locked down 4398 | -7/Factory | Discovered new exit (range 16) 4550 | -7/Factory | Build established: Mutant 4591 | -7/Factory | Fabricated Arm. Huge Wheel (x2) 4770 | -7/Factory | Cargo convoy interrupted 4857 | -7/Factory | Repaired Enh. Autogun 6250 | -7/Factory | Lost 4 parts (2u2w) 6273 | -7/Factory | Identified exit to Garrison 6273 | -7/Factory | Entered Garrison 6343 | -7/Garrison | Triggered checkpoint 6436 | -7/Garrison | Discovered new exit (range 15) 6459 | -7/Garrison | Installed Relay Interface Framework 6473 | -7/Garrison | Triggered checkpoint 6505 | -7/Garrison | Garrison Relay disabled 6661 | -7/Garrison | Triggered checkpoint 6667 | -7/Garrison | System corruption reached 10% 6698 | -7/Garrison | Build established: Scavenger-Mutant 6700 | -7/Garrison | Discovered new exit (range 8) 6737 | -7/Garrison | Triggered checkpoint 6819 | -7/Garrison | Garrison Relay disabled 6892 | -7/Garrison | Entered Factory 7153 | -7/Factory | Build established: Bothacker-Mutant 7273 | -7/Factory | Discovered new exit (range 10) 7349 | -7/Factory | Core integrity fell below 50% 7507 | -7/Factory | Garrison activated, responded to threat 7561 | -7/Factory | Destroyed 7 combat bots 7621 | -7/Factory | Lost 12 parts (1p5n4u2w) 7711 | -7/Factory | Core integrity fell below 20% 7712 | -7/Factory | Cargo convoy interrupted 7726 | -7/Factory | Destroyed by H-55 Commando with Gauss Rifle Last Messages --------------- 07711_ P-60 Hacker unfolds itself. 07711_ H-55 Commando unfolds itself. 07711_ X-57 Shotgunner unfolds itself. 07711_ I-36 Angel unfolds itself. 07712_ ALERT: Cargo convoy interrupted, initiating access lockdown. 07712_ Slug penetrates Wall. 07712_ K-01 Serf collects debris. 07714_ Weapon Cycler destroyed. 07718_ U-05 Engineer builds a Wall. 07720_ M-28 Smith repairs P-60 Hacker Shock Rifle. 07720_ Slug penetrates Subcomponent Replicator. 07723_ Subcomponent Replicator disabled. 07724_ L-41 Fighter destroyed. 07724_ Switching to secondary target: H-55 Commando. 07726_ Penetrated by Slug. [Achievement: Just Browsing] Map ----- +----------------------------------------------------+ | # #??????????????????????????????????????????????? | | # #??????????????????????????????????????????????? | | # ############???????????????????????????????????? | | # ##??? ??#???????????????????????????????????? | | # ##?? ??#???????????????????????????????????? | | # ##?? """"??#???????????????????????????????????? | | # ##? """"??#???????????????????????????????????? | | # ##? """" #???????????????????????????????????? | | #] """" #???????????????????????????????????? | | # !#?##########????????????????????????? | | + #?# #????????????????????????? | | ############# #????????????????????????? | | ####### # """" #????????????????????????? | | # """" ############?????????????? | | < + """" + + ????????? | | # """" ##### """?????????????? | | ########## # """" ! #???#??????"?????????????? | | ?????????### ### """" #???#????????????????????? | | ????######## #?# !%* "#???#????????????????????? | | ????# ?# #?###/####+#####????????????????????? | | ##### ?# #???#%# %% #????????????????????? | | # # #??##%# h"" ""#????????????????????? | | # # #####%# x""h ""#????????????????????? | | "" # +! + "" G#????????????????????? | | "" # # # p"""%""#????????????????????? | | "" # # = # b"""@""#????????????????????? | | "" # ?+ %! #! h g #????????????????????? | | ??# ?#### !# p #????????????????????? | | ??# ??#??#!! =##########????????????????????? | | ############??# ##+#########?????????????????????? | | ?????#????????#!## = #?????????????????????? | | #????#???????##!## "" #?????????????????????? | | #????######### ! # ="" #?????????????????????? | | # + * """ #?????????????????????? | | #?############ # / =*" #?????????????????????? | | #?#??????????## ##" *""" #?????????????????????? | | #?#???????????# ##"" ! #?????????????????????? | | #?#???????????# T# ! #?????????????????????? | | #?#???????????# ###########?????????????????????? | | ??#???????????# ##??????#????????????????????????? | | ?????????????## ##??????#????????????????????????? | | ?????##+###### #??????#????????????????????????? | | ?????????????? +??????#????????????????????????? | | ?????######### #??????#????????????????????????? | | ?????????????## ##??????#????????????????????????? | | ??????????????# #####????????????????????????????? | | ??????????????#+####?????????????????????????????? | | ?????????????#??????????????????????????????????? | | +????????????#??????????????????????????????????? | | #????????????#??????????????????????????????????? | +----------------------------------------------------+ Best States ------------- Heat Dissipation 61 Energy Generation 18 Energy Capacity 310 Matter Stores 365 Matter Capacity 400 Sight Range 16 Robot Scan Range 14 Terrain Scan Range 16 Terrain Scan Density 110 Armor Coverage 300 Resistance: TH 10 Weapon Cycling 30 Evasion (%) 55 Targeting Accuracy 5 Melee Accuracy 6 Core Analysis 6 Recoil Reduction 4 Relay Coupler Types 1 Relay Coupler Value 30 Item Schematics ----------------- Arm. Huge Wheel | -7/Factory | Scanalyzed Robot Schematics ------------------ None Fabricated ------------ Arm. Huge Wheel | x2 | -7/Factory Repaired ---------- Hvy. Battle Rifle | 3% | -8/Materials Enh. Autogun | 13% | -7/Factory Studied --------- Arm. Huge Wheel | -7/Factory | Hacked Alien Tech Used ----------------- None Achievements -------------- Just Browsing Omniscient Cartographer Challenges ------------ None Game ------ Seed InsulatedJammingTether Manual? 0 Play Time 02:00:50 Cumulative 28.1 hours Start 2025.12.28 @ 20:02:14 End 2025.12.29 @ 01:26:03 Sessions 5 Manual Loads 0 Difficulty Rogue Special Mode None Game No. 12 Rogue 12 Adventurer 0 Explorer 0 Win Type - Total 1 Types 1/0/0/0/0/0/0/0/0/0 Lore% 12 Gallery% 25 Achievement% 24 Wizard Run 0 Options --------- Layout 2 ASCII 0 Keyboard 0 Movement Mouse Keybinds 0 Fullscreen 1 Font 24/Smallcaps Map View 50x44 Zoom Use 0% Tactical HUD 1 Map Filters NONE Filters NONE Steam 1 RUN: 61b4d42b-5f8d-4ee8-8052-d6935c27053d